fUST/lending_fUST_20251231
["ID","MTS","AMOUNT","RATE_DAILY","PERIOD"]
[400149668,1767155442203,-1500.0,0.00014795,2]
[400149669,1767155442212,-1500.0,0.00014795,2]
[400149670,1767155442221,-1500.0,0.00014795,2]
[400149671,1767155442231,-1500.0,0.00014795,2]
[400149672,1767155442241,-179.25919058,0.00014916,2]
[400149673,1767155442250,-2000.0,0.00014916,2]
[400149674,1767155442259,-2000.0,0.00014916,2]
[400149675,1767155442269,-2000.0,0.00014916,2]
[400149676,1767155442278,-2000.0,0.00014916,2]
[400149677,1767155442287,-2000.0,0.00014916,2]
[400149678,1767155442297,-2000.0,0.00014916,2]
[400149679,1767155442306,-2000.0,0.00014916,2]
[400149680,1767155442316,-2000.0,0.00014916,2]
[400149681,1767155442325,-613.45090759,0.00014916,2]
[400149682,1767155442336,-2000.0,0.00014916,2]
[400149683,1767155442345,-2000.0,0.00014916,2]
[400149684,1767155442354,-2000.0,0.00014916,2]
[400149685,1767155442364,-2000.0,0.00014916,2]
[400149686,1767155442373,-2000.0,0.00014916,2]
[400149687,1767155442383,-2000.0,0.00014916,2]
[400149688,1767155442392,-80000.0,0.00015,2]
[400149689,1767155442402,-27976.29375996,0.00015,2]
[400149690,1767155442411,-150.77099208,0.00015,2]
[400149691,1767155442421,-151.0,0.00015028,2]
[400149692,1767155442431,-151.0,0.00015028,2]
[400149695,1767155442571,-100000.0,0.00015028,2]
[400149696,1767155442581,-803.5950816,0.00015068,2]
[400149697,1767155442591,-151.0,0.00015277,2]
[400149698,1767155442600,-533.88981491,0.00015277,2]
[400149699,1767155442609,-2579.17784983,0.00015277,2]
[400149700,1767155442618,-2564.77,0.00015283,2]
[400149701,1767155442628,-1200.0,0.00015316,2]
[400149702,1767155442637,-508.82384523,0.00015342,2]
[400149703,1767155442646,-2034.26049156,0.00015342,2]
[400149704,1767155442655,-918.31768676,0.00015342,2]
[400149705,1767155442664,-1050.74198848,0.00015342,2]
[400149706,1767155442673,-155.66749295,0.00015342,2]
[400149707,1767155442683,-1151.60877791,0.00015342,2]
[400149708,1767155442692,-1037.58100831,0.00015342,2]
[400149709,1767155442702,-1505.31532944,0.00015342,2]
[400149710,1767155442711,-2000.0,0.00015342,2]
[400149711,1767155442721,-1074.09930708,0.00015342,2]
[400149712,1767155442729,-422.85192268,0.00015342,2]
[400149713,1767155442739,-1518.84773542,0.00015342,2]
[400149714,1767155442748,-2000.0,0.00015342,2]
[400149715,1767155442758,-1003.64865922,0.00015342,2]
[400149716,1767155442768,-2000.0,0.00015342,2]
[400149718,1767155442777,-1886.3706875,0.00015342,2]
[400149719,1767155442787,-2000.0,0.00015342,2]
[400149720,1767155442796,-2000.0,0.00015342,2]
[400149721,1767155442805,-1980.71714518,0.00015342,2]
[400149722,1767155442814,-2000.0,0.00015342,2]
[400149723,1767155442824,-2000.0,0.00015342,2]
[400149724,1767155442833,-2000.0,0.00015342,2]
[400149725,1767155442842,-415.94669576,0.00015342,2]
[400149726,1767155442851,-2000.0,0.00015342,2]
[400149727,1767155442860,-1799.59970903,0.00015342,2]
[400149728,1767155442870,-1879.37902934,0.00015342,2]
[400149729,1767155442879,-604.13585388,0.00015342,2]
[400149730,1767155442892,-1004.79599952,0.00015342,2]
[400149731,1767155442901,-707.59767903,0.00015342,2]
[400149732,1767155442910,-1293.14415046,0.00015342,2]
[400149733,1767155442920,-2000.0,0.00015342,2]
[400149734,1767155442930,-2000.0,0.00015342,2]
[400149735,1767155442939,-1218.16061512,0.00015342,2]
[400149736,1767155443105,-430.55025904,0.00012329,2]
[400149746,1767155444770,-383.72974096,0.00012329,2]
[400149747,1767155444779,-596.69,0.00014368,2]
[400149748,1767155444789,-596.69,0.00014368,2]
[400149749,1767155444798,-596.8543325,0.00014368,2]
[400149750,1767155444807,-100.45666438,0.00015342,2]
[400149751,1767155444818,-187.33089502,0.00015342,2]
[400149752,1767155444827,-123.30304712,0.00015342,2]
[400149753,1767155445686,-1876.69695288,0.00015342,2]
[400149754,1767155445696,-503.48898302,0.00015342,2]
[400149755,1767155445706,-2500.0,0.00015464,2]
[400149756,1767155445716,-270.44343412,0.00015464,2]
[400149757,1767155445725,-2500.0,0.00015464,2]
[400149758,1767155445735,-2500.0,0.00015464,2]
[400149759,1767155445744,-2500.0,0.00015464,2]
[400149760,1767155445753,-2500.0,0.00015464,2]
[400149761,1767155445762,-2500.0,0.00015464,2]
[400149762,1767155445771,-1251.37832845,0.00015464,2]
[400149768,1767155447227,-1248.62167155,0.00015464,2]
[400149769,1767155447237,-2500.0,0.00015464,2]
[400149770,1767155447247,-1196.66745363,0.00015464,2]
[400149771,1767155447258,-490.609,0.00015464,2]
[400149772,1767155447270,-8.47317068,0.00015464,2]
[400149773,1767155447279,-1869.66779668,0.00015464,2]
[400149774,1767155447289,-2500.0,0.00015464,2]
[400149775,1767155447298,-2500.0,0.00015464,2]
[400149776,1767155447308,-2500.0,0.00015464,2]
[400149777,1767155447317,-151.68521952,0.00015825,2]
[400149778,1767155447326,-553.64373807,0.00015825,2]
[400149779,1767155447337,-2674.60743027,0.00015825,2]
[400149780,1767155447347,-1500.0,0.00015864,2]
[400149781,1767155447357,-2500.0,0.0001589,2]
[400149782,1767155447370,-1007.68801883,0.0001589,2]
[400149783,1767155447381,-1968.40224948,0.0001589,2]
[400149784,1767155447390,-505.23629678,0.0001589,2]
[400149785,1767155447400,-196.15125123,0.0001589,2]
[400149786,1767155447410,-998.45804599,0.0001589,2]
[400149787,1767155447420,-659.95613973,0.0001589,2]
[400149788,1767155447429,-2500.0,0.0001589,2]
[400149789,1767155447439,-502.53547853,0.0001589,2]
[400149790,1767155447448,-442.31574179,0.0001589,2]
[400149791,1767155447458,-1500.65529052,0.0001589,2]
[400149792,1767155447467,-2500.0,0.0001589,2]
[400149793,1767155447478,-218.08393044,0.00015968,2]
[400149794,1767155447642,-645.91606956,0.00015968,2]
[400149795,1767155447652,-725.95698083,0.0001599,2]
[400149796,1767155447661,-81.74922402,0.00016012,2]
[400149797,1767155447672,-270.12283298,0.00016012,2]
[400149798,1767155584600,-300.0,0.00012227,2]
[400149800,1767155595148,359.0,0.00012227,2]
[400149801,1767155598880,500.0,0.00012227,2]
[400149802,1767155599097,500.0,0.00012227,2]
[400149803,1767155600307,500.0,0.00012227,2]
[400149804,1767155600463,500.0,0.00012227,2]
[400149805,1767155601967,500.0,0.00012227,2]
[400149806,1767155602009,500.0,0.00012227,2]
[400149807,1767155602046,500.0,0.00012227,2]
[400149808,1767155602085,564.52963783,0.00012227,2]
[400149809,1767155602125,500.0,0.00012227,2]
[400149810,1767155602160,500.0,0.00012227,2]
[400149811,1767155602196,500.0,0.00012227,2]
[400149812,1767155602239,500.0,0.00012227,2]
[400149813,1767155602279,537.30646022,0.00012227,2]
[400149814,1767155602314,500.0,0.00012227,2]
[400149815,1767155602349,500.0,0.00012227,2]
[400149816,1767155602384,500.0,0.00012227,2]
[400149817,1767155602419,500.0,0.00012227,2]
[400149818,1767155602453,500.0,0.00012227,2]
[400149819,1767155602488,286.72134845,0.00012227,2]
[400149820,1767155602522,500.0,0.00012227,2]
[400149824,1767155769843,299.2269,0.00012104,120]
[400149825,1767155850993,5000.0,0.00011898,2]
[400149826,1767155879840,170.97,9.99e-05,2]
[400149827,1767155880310,170.97,9.99e-05,2]
[400149828,1767155880606,170.97,9.99e-05,2]
[400149838,1767155985192,-5000.0,0.00012104,2]
[400149839,1767155985425,-290.6975212,0.00012165,2]
[400149840,1767155985456,-1200.0,0.00012226,2]
[400149841,1767155985486,-300.0,0.00012226,2]
[400149842,1767155985855,-6792.77375793,0.00012227,2]
[400149843,1767155987933,-5000.0,0.00012104,2]
[400149844,1767155987967,-0.01,0.00012227,2]
[400149845,1767155988059,-10000.01,0.00012227,2]
[400149846,1767155990977,-10000.01,0.00012227,2]
[400149847,1767155991095,-10000.01,0.00012227,2]
[400149848,1767155991210,-10000.01,0.00012227,2]
[400149850,1767156010610,500.0,0.00028767,120]
[400149856,1767156206362,999.0,0.00011227,2]
[400149857,1767156212692,5000.0,0.00012,3]
[400149862,1767156287959,149948.41848033,0.00028767,120]
[400149863,1767156355183,-5000.0,0.00012103,2]
[400149864,1767156355203,-284.88357078,0.00012164,2]
[400149865,1767156355223,-300.0,0.00012225,2]
[400149866,1767156355244,-1200.0,0.00012225,2]
[400149867,1767156355264,-979.96340495,0.00012225,2]
[400149872,1767156369657,5000.0,0.00012,3]
[400149878,1767156570088,-2161.23369,0.00012102,2]
[400149879,1767156619886,500.0,0.00028767,120]
[400149923,1767156632591,-1200.0,0.00012004,2]
[400149924,1767156632600,-1838.54839776,0.00012005,2]
[400149974,1767156638623,-545.178,0.00012005,2]
[400149977,1767156638635,-2616.27360224,0.00012005,2]
[400149978,1767156638647,-589.0,0.00012005,2]
[400149980,1767156638656,-285.64383068,0.00012066,2]
[400149982,1767156638665,-580.76558469,0.00012125,2]
[400149984,1767156638674,-500.0,0.00012126,2]
[400149986,1767156638683,-2014.59272318,0.00012126,2]
[400149988,1767156638692,-2014.59272318,0.00012126,2]
[400149990,1767156638702,-2014.59272318,0.00012126,2]
[400149992,1767156638711,-413.05804197,0.00012126,2]
[400149994,1767156638720,-2014.59272318,0.00012126,2]
[400149996,1767156638729,-2014.59272318,0.00012126,2]
[400149998,1767156638738,-2014.59272318,0.00012126,2]
[400149999,1767156638747,-2014.59272318,0.00012126,2]
[400150001,1767156638756,-2014.59272318,0.00012126,2]
[400150003,1767156638766,-2014.59272318,0.00012126,2]
[400150005,1767156638775,-2014.59272318,0.00012126,2]
[400150007,1767156638785,-2014.59272318,0.00012126,2]
[400150009,1767156638795,-2014.59272318,0.00012126,2]
[400150010,1767156638804,-2014.59272318,0.00012126,2]
[400150012,1767156638816,-2014.59272318,0.00012126,2]
[400150014,1767156638831,-2014.59272318,0.00012126,2]
[400150016,1767156638839,-226.36738447,0.00012126,2]
[400150018,1767156638849,-507.16995976,0.00012126,2]
[400150019,1767156638858,-500.0,0.00012126,2]
[400150021,1767156638867,-365.19126094,0.00012126,2]
[400150022,1767156638877,-479.70629333,0.00012126,2]
[400150023,1767156638886,-500.0,0.00012126,2]
[400150024,1767156638895,-2014.59272318,0.00012126,2]
[400150025,1767156638905,-500.0,0.00012126,2]
[400150026,1767156638915,-500.0,0.00012126,2]
[400150027,1767156638924,-500.0,0.00012126,2]
[400150028,1767156638934,-2014.59272318,0.00012126,2]
[400150029,1767156638943,-500.0,0.00012126,2]
[400150030,1767156638953,-2014.59272318,0.00012126,2]
[400150031,1767156638962,-300.0,0.00012126,2]
[400150032,1767156638972,-37137.00452058,0.00012127,2]
[400150033,1767156638983,-10041.97607162,0.00012127,2]
[400150034,1767156639011,-179497.7317058,0.00012127,2]
[400150035,1767156639021,-1200.0,0.00012224,2]
[400150036,1767156639031,-50000.0,0.00012225,2]
[400150037,1767156639041,-300.0,0.00012571,2]
[400150038,1767156639050,-300.0,0.00012571,2]
[400150039,1767156639060,-300.0,0.00012571,2]
[400150041,1767156639070,-300.0,0.00012571,2]
[400150042,1767156639080,-300.0,0.00012571,2]
[400150043,1767156639090,-300.0,0.00012571,2]
[400150044,1767156639100,-300.0,0.00012571,2]
[400150045,1767156639109,-300.0,0.00012571,2]
[400150046,1767156639119,-300.0,0.00012571,2]
[400150047,1767156639129,-300.0,0.00012571,2]
[400150048,1767156639139,-300.0,0.00012571,2]
[400150049,1767156639149,-300.0,0.00012571,2]
[400150050,1767156639159,-300.0,0.00012571,2]
[400150051,1767156639168,-300.0,0.00012571,2]
[400150052,1767156639177,-300.0,0.00012571,2]
[400150053,1767156639187,-600.0,0.00012571,2]
[400150054,1767156639196,-868.62,0.00012599,2]
[400150055,1767156639206,-23437.8096451,0.00012657,2]
[400150056,1767156639215,-10302.97080389,0.000129,2]
[400150057,1767156639224,-2370.56552518,0.00012997,2]
[400150058,1767156639233,-1680.0,0.00013204,2]
[400150059,1767156639243,-500.0,0.00013273,2]
[400150060,1767156639252,-500.0,0.00013273,2]
[400150061,1767156639262,-500.0,0.00013273,2]
[400150062,1767156639271,-381.16221649,0.00013273,2]
[400150063,1767156639281,-500.0,0.00013273,2]
[400150064,1767156639291,-500.0,0.00013273,2]
[400150065,1767156639301,-500.0,0.00013273,2]
[400150066,1767156639311,-500.0,0.00013273,2]
[400150067,1767156639320,-500.0,0.00013273,2]
[400150068,1767156639331,-500.0,0.00013273,2]
[400150069,1767156639341,-500.0,0.00013273,2]
[400150070,1767156639350,-500.0,0.00013273,2]
[400150071,1767156639361,-500.0,0.00013273,2]
[400150072,1767156639371,-502.45533374,0.00013273,2]
[400150073,1767156639380,-500.0,0.00013273,2]
[400150074,1767156639390,-500.0,0.00013273,2]
[400150075,1767156639400,-500.0,0.00013273,2]
[400150076,1767156639410,-160.63497667,0.00013273,2]
[400150077,1767156639421,-500.0,0.00013273,2]
[400150078,1767156639430,-500.0,0.00013273,2]
[400150079,1767156639441,-500.0,0.00013273,2]
[400150080,1767156639451,-500.0,0.00013273,2]
[400150081,1767156639461,-500.0,0.00013273,2]
[400150082,1767156639470,-500.0,0.00013273,2]
[400150083,1767156639480,-500.0,0.00013273,2]
[400150084,1767156639490,-500.0,0.00013273,2]
[400150085,1767156639499,-500.0,0.00013273,2]
[400150086,1767156639508,-530.18035564,0.00013273,2]
[400150087,1767156639519,-500.0,0.00013273,2]
[400150088,1767156639528,-520.05984388,0.00013273,2]
[400150089,1767156639538,-500.0,0.00013273,2]
[400150090,1767156639547,-500.0,0.00013273,2]
[400150091,1767156639556,-502.50925578,0.00013273,2]
[400150092,1767156639566,-529.84736886,0.00013273,2]
[400150093,1767156639575,-500.0,0.00013273,2]
[400150094,1767156639584,-500.0,0.00013273,2]
[400150095,1767156639593,-500.0,0.00013273,2]
[400150096,1767156639603,-500.0,0.00013273,2]
[400150097,1767156639613,-500.0,0.00013273,2]
[400150098,1767156639622,-459.90209075,0.00013273,2]
[400150099,1767156639632,-499.96763801,0.00013273,2]
[400150100,1767156639643,-232.27795913,0.00013273,2]
[400150101,1767156639654,-500.0,0.00013273,2]
[400150102,1767156639663,-500.0,0.00013273,2]
[400150103,1767156639672,-205.30476225,0.00013273,2]
[400150104,1767156639683,-500.0,0.00013273,2]
[400150105,1767156639692,-500.0,0.00013273,2]
[400150106,1767156639701,-500.0,0.00013273,2]
[400150107,1767156639710,-494.0031485,0.00013273,2]
[400150108,1767156639720,-500.0,0.00013273,2]
[400150109,1767156639730,-500.0,0.00013273,2]
[400150110,1767156639739,-500.0,0.00013273,2]
[400150111,1767156639748,-420.0,0.00013309,2]
[400150112,1767156639758,-168.6188728,0.00013369,2]
[400150113,1767156639767,-263.00951486,0.00013407,2]
[400150114,1767156639776,-10196.19600505,0.0001354,2]
[400150115,1767156639786,-1401.94,0.00013698,2]
[400150116,1767156639795,-1401.94,0.00013698,2]
[400150117,1767156639804,-1401.94,0.00013698,2]
[400150118,1767156639813,-1401.94,0.00013698,2]
[400150119,1767156639823,-1401.94,0.00013698,2]
[400150120,1767156639833,-1401.94,0.00013698,2]
[400150121,1767156639843,-1401.94,0.00013698,2]
[400150122,1767156639853,-1401.94,0.00013698,2]
[400150123,1767156639991,-1401.94,0.00013698,2]
[400150124,1767156640009,-1293.85,0.00013698,2]
[400150125,1767156640019,-1293.85,0.00013698,2]
[400150126,1767156640029,-1293.85,0.00013698,2]
[400150127,1767156640038,-1293.85,0.00013698,2]
[400150128,1767156640048,-1293.85,0.00013698,2]
[400150129,1767156640057,-1293.85,0.00013698,2]
[400150130,1767156640066,-1293.85,0.00013698,2]
[400150131,1767156640076,-1293.85,0.00013698,2]
[400150132,1767156640085,-500.0,0.00013698,2]
[400150133,1767156640094,-262.16767073,0.00013698,2]
[400150134,1767156640104,-190.40044785,0.00013698,2]
[400150135,1767156640113,-837.140147,0.00013699,2]
[400150136,1767156640122,-1000.0,0.00013699,2]
[400150137,1767156640132,-251.84601956,0.00013699,2]
[400150138,1767156640142,-500.0,0.00013699,2]
[400150139,1767156640151,-500.0,0.00013699,2]
[400150140,1767156640160,-500.0,0.00013699,2]
[400150141,1767156640170,-500.0,0.00013699,2]
[400150142,1767156640179,-609.17214565,0.00013699,2]
[400150143,1767156640188,-500.0,0.00013699,2]
[400150144,1767156640197,-433.15519118,0.00013699,2]
[400150145,1767156640207,-500.0,0.00013699,2]
[400150146,1767156640216,-500.0,0.00013699,2]
[400150147,1767156640226,-500.0,0.00013699,2]
[400150148,1767156640235,-500.0,0.00013699,2]
[400150149,1767156640244,-500.0,0.00013699,2]
[400150150,1767156640253,-500.0,0.00013699,2]
[400150151,1767156640262,-500.0,0.00013699,2]
[400150153,1767156640272,-500.0,0.00013699,2]
[400150154,1767156640281,-500.0,0.00013699,2]
[400150155,1767156640290,-500.0,0.00013699,2]
[400150156,1767156640299,-500.0,0.00013699,2]
[400150157,1767156640308,-500.0,0.00013699,2]
[400150158,1767156640318,-500.0,0.00013699,2]
[400150160,1767156640327,-500.0,0.00013699,2]
[400150162,1767156640337,-500.0,0.00013699,2]
[400150164,1767156640347,-500.0,0.00013699,2]
[400150165,1767156640356,-500.0,0.00013699,2]
[400150166,1767156640366,-159.68059141,0.00013699,2]
[400150168,1767156640375,-165.03764715,0.00013699,2]
[400150169,1767156640384,-500.0,0.00013699,2]
[400150171,1767156640393,-500.0,0.00013699,2]
[400150173,1767156640403,-500.0,0.00013699,2]
[400150175,1767156640412,-500.0,0.00013699,2]
[400150177,1767156640422,-500.0,0.00013699,2]
[400150179,1767156640431,-500.0,0.00013699,2]
[400150181,1767156640441,-500.0,0.00013699,2]
[400150183,1767156640450,-260.2481779,0.00013699,2]
[400150185,1767156640459,-298.53483888,0.00013699,2]
[400150187,1767156640468,-158.38534465,0.00013699,2]
[400150189,1767156640477,-158.38534191,0.00013699,2]
[400150191,1767156640486,-158.38534385,0.00013699,2]
[400150193,1767156640496,-160.18745103,0.00013699,2]
[400150194,1767156640505,-500.0,0.00013699,2]
[400150196,1767156640514,-500.0,0.00013699,2]
[400150198,1767156640523,-303.93264249,0.00013699,2]
[400150200,1767156640532,-237.8458189,0.00013699,2]
[400150202,1767156640541,-500.0,0.00013699,2]
[400150204,1767156640551,-500.0,0.00013699,2]
[400150206,1767156640561,-565.555714,0.00013699,2]
[400150208,1767156640570,-500.0,0.00013699,2]
[400150210,1767156640580,-160.15137988,0.00013699,2]
[400150212,1767156640589,-500.0,0.00013699,2]
[400150214,1767156640598,-150.35034149,0.00013699,2]
[400150216,1767156640608,-500.0,0.00013699,2]
[400150218,1767156640617,-500.0,0.00013699,2]
[400150220,1767156640626,-587.30545204,0.00013699,2]
[400150222,1767156640635,-500.0,0.00013699,2]
[400150224,1767156640648,-242.87306652,0.00013699,2]
[400150226,1767156640657,-346.46150426,0.00013699,2]
[400150228,1767156640666,-500.0,0.00013699,2]
[400150230,1767156640676,-500.0,0.00013699,2]
[400150232,1767156640685,-500.0,0.00013699,2]
[400150234,1767156640693,-500.0,0.00013699,2]
[400150236,1767156640702,-158.38533297,0.00013699,2]
[400150238,1767156640711,-160.3309554,0.00013699,2]
[400150240,1767156640721,-500.0,0.00013699,2]
[400150242,1767156640730,-500.0,0.00013699,2]
[400150244,1767156640739,-416.75445415,0.00013699,2]
[400150246,1767156640748,-158.38886572,0.00013699,2]
[400150248,1767156640757,-157.18386067,0.00013699,2]
[400150250,1767156640766,-260.28159851,0.00013699,2]
[400150252,1767156640776,-500.0,0.00013699,2]
[400150254,1767156640785,-158.18512013,0.00013699,2]
[400150256,1767156640794,-500.0,0.00013699,2]
[400150258,1767156640803,-500.0,0.00013699,2]
[400150260,1767156640812,-500.0,0.00013699,2]
[400150262,1767156640821,-500.0,0.00013699,2]
[400150264,1767156640830,-500.0,0.00013699,2]
[400150266,1767156640839,-158.10807846,0.00013699,2]
[400150268,1767156640848,-500.0,0.00013699,2]
[400150270,1767156640856,-500.0,0.00013699,2]
[400150272,1767156640865,-500.0,0.00013699,2]
[400150274,1767156640874,-158.38532202,0.00013699,2]
[400150276,1767156640884,-500.0,0.00013699,2]
[400150278,1767156640892,-500.0,0.00013699,2]
[400150280,1767156640901,-500.0,0.00013699,2]
[400150282,1767156640911,-500.0,0.00013699,2]
[400150284,1767156640919,-500.0,0.00013699,2]
[400150286,1767156640928,-500.0,0.00013699,2]
[400150288,1767156640937,-500.0,0.00013699,2]
[400150290,1767156640946,-163.65866633,0.00013699,2]
[400150291,1767156640955,-500.0,0.00013699,2]
[400150293,1767156640965,-500.0,0.00013699,2]
[400150295,1767156640974,-500.0,0.00013699,2]
[400150298,1767156640983,-500.0,0.00013699,2]
[400150299,1767156640992,-500.0,0.00013699,2]
[400150301,1767156641001,-254.02465024,0.00013699,2]
[400150303,1767156641010,-309.28633635,0.00013699,2]
[400150305,1767156641019,-500.0,0.00013699,2]
[400150307,1767156641028,-178.08460977,0.00013699,2]
[400150309,1767156641037,-525.82485317,0.00013699,2]
[400150311,1767156641046,-500.0,0.00013699,2]
[400150313,1767156641055,-540.63230604,0.00013699,2]
[400150315,1767156641064,-500.0,0.00013699,2]
[400150317,1767156641073,-500.0,0.00013699,2]
[400150319,1767156641083,-500.0,0.00013699,2]
[400150321,1767156641091,-500.0,0.00013699,2]
[400150323,1767156641101,-500.0,0.00013699,2]
[400150325,1767156641110,-500.0,0.00013699,2]
[400150327,1767156641119,-500.0,0.00013699,2]
[400150329,1767156641128,-500.0,0.00013699,2]
[400150331,1767156641137,-500.0,0.00013699,2]
[400150333,1767156641146,-500.0,0.00013699,2]
[400150335,1767156641155,-158.3853059,0.00013699,2]
[400150337,1767156641165,-500.0,0.00013699,2]
[400150339,1767156641174,-500.0,0.00013699,2]
[400150341,1767156641183,-500.0,0.00013699,2]
[400150343,1767156641192,-500.0,0.00013699,2]
[400150345,1767156641202,-213.3181846,0.00013699,2]
[400150347,1767156641211,-500.0,0.00013699,2]
[400150349,1767156641220,-500.0,0.00013699,2]
[400150351,1767156641229,-500.0,0.00013699,2]
[400150353,1767156641237,-500.0,0.00013699,2]
[400150355,1767156641247,-500.0,0.00013699,2]
[400150357,1767156641256,-500.0,0.00013699,2]
[400150359,1767156641265,-500.0,0.00013699,2]
[400150361,1767156641275,-580.76558466,0.00013732,2]
[400150363,1767156641284,-1737.24,0.00013745,2]
[400150365,1767156641292,-1401.94,0.0001382,2]
[400150367,1767156641301,-1401.94,0.0001382,2]
[400150369,1767156641310,-1293.85,0.0001382,2]
[400150371,1767156641319,-1293.85,0.0001382,2]
[400150373,1767156641329,-1000.0,0.00013821,2]
[400150375,1767156641338,-544.63270575,0.00013821,2]
[400150377,1767156641347,-413.99757981,0.00013821,2]
[400150379,1767156641357,-1000.0,0.00013821,2]
[400150381,1767156641366,-1000.0,0.00013821,2]
[400150383,1767156641376,-1000.0,0.00013821,2]
[400150385,1767156641385,-1000.0,0.00013821,2]
[400150387,1767156641394,-1000.0,0.00013821,2]
[400150389,1767156641403,-500.0,0.00013821,2]
[400150391,1767156641412,-1000.0,0.00013821,2]
[400150393,1767156641422,-1000.0,0.00013821,2]
[400150395,1767156641431,-1000.0,0.00013821,2]
[400150397,1767156641440,-1000.0,0.00013821,2]
[400150399,1767156641449,-315.88685405,0.00013821,2]
[400150401,1767156641459,-1000.0,0.00013821,2]
[400150403,1767156641469,-1000.0,0.00013821,2]
[400150404,1767156641478,-1000.0,0.00013821,2]
[400150407,1767156641488,-1000.0,0.00013821,2]
[400150408,1767156641497,-1000.0,0.00013821,2]
[400150410,1767156641507,-1000.0,0.00013821,2]
[400150413,1767156641516,-1000.0,0.00013821,2]
[400150415,1767156641526,-1000.0,0.00013821,2]
[400150416,1767156641535,-177.12142034,0.00013821,2]
[400150418,1767156641545,-585.46093203,0.00013821,2]
[400150420,1767156641554,-1000.0,0.00013821,2]
[400150422,1767156641563,-1000.0,0.00013821,2]
[400150424,1767156641573,-1000.0,0.00013821,2]
[400150427,1767156641582,-1000.0,0.00013821,2]
[400150429,1767156641592,-1000.0,0.00013821,2]
[400150431,1767156641601,-1000.0,0.00013821,2]
[400150433,1767156641610,-1000.0,0.00013821,2]
[400150435,1767156641619,-1000.0,0.00013821,2]
[400150437,1767156641629,-1000.0,0.00013821,2]
[400150439,1767156641639,-1000.0,0.00013821,2]
[400150441,1767156641651,-1000.0,0.00013821,2]
[400150443,1767156641661,-1000.0,0.00013821,2]
[400150445,1767156641671,-1102.47879957,0.00013821,2]
[400150447,1767156641680,-501.55479895,0.00013821,2]
[400150449,1767156641690,-720.0,0.00013828,2]
[400150451,1767156641699,-163.51788502,0.00013973,2]
[400150453,1767156641708,-1348.90832331,0.00014059,2]
[400150454,1767156641717,-337.05972021,0.00014066,2]
[400150457,1767156641729,-254.32,0.00014076,2]
[400150459,1767156641738,-157.07,0.00014076,2]
[400150460,1767156641747,-157.07,0.00014076,2]
[400150462,1767156641756,-157.07,0.00014076,2]
[400150465,1767156641765,-157.07,0.00014076,2]
[400150467,1767156641775,-157.07,0.00014076,2]
[400150469,1767156641784,-157.06,0.00014076,2]
[400150471,1767156641793,-645.48925412,0.00014082,2]
[400150473,1767156641803,-1401.94,0.00014246,2]
[400150474,1767156641812,-1401.94,0.00014246,2]
[400150476,1767156641822,-1401.94,0.00014246,2]
[400150479,1767156641831,-1293.85,0.00014246,2]
[400150480,1767156641840,-1293.85,0.00014246,2]
[400150482,1767156641849,-1293.85,0.00014246,2]
[400150484,1767156641858,-1024.36073826,0.00014247,2]
[400150486,1767156641868,-1000.0,0.00014247,2]
[400150488,1767156641877,-1000.0,0.00014247,2]
[400150490,1767156641885,-1000.0,0.00014247,2]
[400150492,1767156641892,-1000.0,0.00014247,2]
[400150494,1767156641901,-1000.0,0.00014247,2]
[400150496,1767156641910,-1000.0,0.00014247,2]
[400150498,1767156641919,-1000.0,0.00014247,2]
[400150500,1767156641928,-505.9697834,0.00014247,2]